bitfinex-derivatives/quotes_ETHF0:USTF0_20250105
["timestamp","ask_amount","ask_price","bid_price","bid_amount"]
[1736104517019,0.99816952,3637.3,3636.7,3.6866]
[1736104517219,0.99816952,3637.0,3636.8,1.067]
[1736104517517,0.99816952,3637.0,3636.8,1.31453]
[1736104517723,0.4932,3636.9,3636.8,1.31453]
[1736104518022,0.4932,3636.9,3636.8,1.067]
[1736104518519,0.74072,3636.9,3636.5,1.067]
[1736104518824,4.20596952,3636.7,3636.2,5.08315819]
[1736104519017,4.20596952,3636.7,3636.2,1.067]
[1736104519018,0.99816952,3636.5,3636.2,1.067]
[1736104519521,1.24571952,3636.5,3636.1,0.88455732]
[1736104520025,1.24571952,3636.5,3636.1,0.24757]
[1736104520227,0.99816952,3636.2,3636.0,0.99816952]
[1736104520429,0.99816952,3636.2,3636.0,1.24574952]
[1736104520730,0.4934,3636.1,3636.0,1.24574952]
[1736104521133,0.4934,3636.1,3636.0,0.24758]
[1736104522830,0.90610545,3636.1,3636.0,0.24758]
[1736104523924,3.705849,3636.3,3636.0,7.63478378]
[1736104524235,0.4794681,3636.4,3636.3,0.24756]
[1736104524428,0.4794681,3636.4,3636.3,3.52805189]
[1736104524429,0.40875021,3636.4,3636.3,3.52805189]
[1736104524631,0.40875021,3636.4,3636.3,1.31456]
[1736104524834,5.4089759,3636.7,3636.3,3.28049189]
[1736104525037,5.4089759,3636.7,3636.6,0.24754]
[1736104525228,5.4089759,3636.7,3636.6,1.31454]
[1736104525427,2.15821491,3636.8,3636.7,0.24753]
[1736104527426,2.15821491,3636.8,3636.7,1.31453]
[1736104528339,2.15821491,3636.8,3636.7,0.24753]
[1736104528639,2.15821491,3636.8,3636.7,1.31453]
[1736104530435,2.15821491,3636.8,3636.7,3.52802189]
[1736104530630,0.05797,3636.8,3636.7,3.52802189]
[1736104530831,2.89043877,3637.0,3636.9,0.24752]
[1736104531145,2.31897296,3637.1,3637.0,0.24751]
[1736104531445,2.31897296,3637.1,3637.0,2.94480189]
[1736104532244,1.5104,3638.0,3637.9,0.24745]
[1736104533344,1.5104,3638.0,3637.8,1.067]
[1736104533538,1.5104,3638.0,3637.8,1.31445]
[1736104534042,1.5104,3638.0,3637.9,0.24745]
[1736104534941,1.5104,3638.0,3637.8,1.089]
[1736104535342,1.5104,3638.0,3637.9,0.24745]
[1736104540642,6.5104,3638.0,3637.3,0.24749]
[1736104540957,6.5104,3638.0,3637.0,1.089]
[1736104540958,3.2078,3637.7,3637.4,0.24748]
[1736104541140,3.45527,3637.7,3637.0,1.089]
[1736104541337,3.45527,3637.7,3637.4,0.24748]
[1736104541545,3.2078,3637.7,3637.4,0.24748]
[1736104541744,3.2078,3637.7,3637.6,0.24747]
[1736104541945,3.2078,3637.7,3637.2,2.21349189]
[1736104541946,1.75785,3638.0,3637.7,0.24746]
[1736104542444,0.24746,3637.9,3637.6,0.24747]
[1736104543142,0.24746,3637.9,3637.0,4.2968]
[1736104543347,0.24746,3637.9,3637.7,0.24747]
[1736104544151,0.41256552,3637.8,3637.7,0.24747]
[1736104545453,0.41256552,3637.9,3637.1,0.61877]
[1736104545653,0.41256552,3637.9,3637.8,0.24746]
[1736104548156,0.41256552,3637.9,3637.1,1.12977]
[1736104548757,2.17041552,3638.0,3637.8,0.24746]
[1736104548960,1.92296552,3638.0,3637.1,1.12977]
[1736104549166,3.2078,3637.8,3637.7,0.24746]
[1736104549965,3.62036552,3637.8,3637.7,0.24746]
[1736104554759,7.93455718,3637.8,3637.7,0.24746]
[1736104556661,4.72675718,3637.8,3637.7,0.24746]
[1736104557360,0.41256552,3637.9,3637.3,1.13163]
[1736104557568,0.41256552,3637.9,3637.8,0.24746]
[1736104561068,1.41061583,3637.9,3637.3,0.5129]
[1736104561372,0.66001552,3637.9,3637.4,0.24749]
[1736104561569,0.66001552,3637.9,3637.7,0.24746]
[1736104561967,0.24746,3637.8,3637.7,0.24746]
[1736104562863,0.2475,3637.2,3637.1,1.089]
[1736104563064,0.2475,3637.2,3636.7,0.9511]
[1736104563065,0.99805031,3637.2,3636.7,0.9511]
[1736104563367,0.99805031,3636.9,3636.8,0.24753]
[1736104564668,0.99805031,3636.9,3636.4,4.59484978]
[1736104564867,0.99805031,3636.5,3636.4,4.84239978]
[1736104565067,0.24754,3636.6,3636.4,0.24755]
[1736104565268,3.2078,3637.0,3636.3,0.9812]
[1736104565566,3.45532,3637.0,3636.7,0.24753]
[1736104565767,4.31419166,3636.9,3636.8,0.24753]
[1736104566772,0.41265457,3636.9,3636.8,0.24753]
[1736104567362,0.41265457,3636.9,3636.8,1.33653]
[1736104567970,3.2078,3637.0,3636.9,0.24752]
[1736104568170,3.2078,3637.0,3636.9,0.72722]
[1736104568573,4.3172561,3637.1,3636.9,0.4797]
[1736104568764,4.3172561,3637.1,3637.0,0.24751]
[1736104568970,4.3172561,3637.1,3636.9,0.4797]
[1736104569276,4.3172561,3637.1,3636.8,1.5948]
[1736104569469,0.5167,3637.0,3636.8,1.84233]
[1736104569676,0.5167,3637.0,3636.8,1.5948]
[1736104569876,0.76422,3637.0,3636.8,1.5948]
[1736104570175,0.24752,3636.9,3636.8,1.5948]
[1736104570564,0.41265457,3636.9,3636.8,1.5948]
[1736104570770,0.41265457,3636.9,3636.8,1.84233]
[1736104572175,0.66017457,3636.9,3636.8,1.5948]
[1736104572367,0.41265457,3636.9,3636.8,1.84233]
[1736104572970,4.73151234,3636.9,3636.8,1.84233]
[1736104577782,3.2078,3637.5,3637.3,0.24749]
[1736104577783,4.31885777,3637.4,3637.3,0.24749]
[1736104578284,4.31885777,3637.4,3637.3,2.46069629]
[1736104578489,1.99055777,3637.4,3637.3,2.46069629]
[1736104578782,4.4909759,3637.6,3637.5,0.24748]
[1736104578979,3.8605759,3637.6,3637.5,4.54428]
[1736104579373,0.4672,3638.4,3638.0,0.24744]
[1736104579572,0.4672,3638.4,3638.1,0.24743]
[1736104580882,0.41247999,3638.3,3638.1,0.24743]
[1736104581281,0.41247999,3638.3,3637.7,2.21320629]
[1736104581480,0.41247999,3638.3,3638.0,0.24744]
[1736104581984,0.41247999,3638.3,3638.1,0.24744]
[1736104582176,0.41247999,3638.3,3637.7,2.21320629]
[1736104582484,0.41247999,3638.3,3637.8,1.33645]
[1736104582485,0.24743,3638.2,3637.8,1.33645]
[1736104582782,3.2078,3638.2,3637.6,0.24747]
[1736104582977,0.24746,3637.8,3637.6,1.089]
[1736104583174,4.6728,3637.7,3637.6,1.089]
[1736104584393,4.92027,3637.7,3637.6,1.089]
[1736104584593,4.92027,3637.7,3637.4,0.24749]
[1736104584889,5.33282694,3637.7,3637.4,0.24749]
[1736104585391,0.24749,3637.4,3637.1,0.2475]
[1736104585593,0.24749,3637.4,3637.2,0.2475]
[1736104585789,0.24748,3637.5,3637.2,0.2475]
[1736104586387,0.24748,3637.5,3636.9,4.2968]
[1736104586388,0.24748,3637.5,3637.3,0.24749]
[1736104586783,0.24748,3637.5,3637.2,0.2475]
[1736104587189,0.41255694,3637.6,3637.3,0.24749]
[1736104587391,0.41255694,3637.4,3637.3,0.24749]
[1736104588692,0.41255694,3637.5,3637.1,2.21320629]
[1736104588992,0.41255694,3637.5,3637.4,0.24749]
[1736104589296,0.41255694,3637.5,3637.4,2.46069629]
[1736104589993,0.4811,3638.1,3638.0,0.24745]
[1736104590988,0.89361314,3638.1,3638.0,0.24745]
[1736104594092,1.14105314,3638.1,3637.9,0.24745]
[1736104594990,3.64861462,3638.0,3637.8,0.24746]
[1736104595197,3.64861462,3638.0,3637.9,0.24745]
[1736104596398,3.23610148,3638.0,3637.9,0.24745]
[1736104597695,3.71720148,3638.1,3638.0,0.24745]
[1736104597895,3.96464148,3638.1,3637.9,0.24745]
[1736104600295,3.64861664,3638.0,3637.9,0.24745]
[1736104601094,5.39239828,3638.4,3637.9,5.0]
[1736104601293,5.39239828,3638.4,3638.3,5.66843629]
[1736104601502,5.39239828,3638.6,3638.5,0.24741]
[1736104601792,5.39239828,3638.6,3638.5,3.55261629]
[1736104602899,0.9895,3638.8,3638.5,3.30520629]
[1736104603602,0.9895,3638.8,3638.7,0.2474]
[1736104617015,0.4755,3639.0,3638.9,0.24738]
[1736104617314,0.4755,3639.0,3638.9,2.46058629]
[1736104620007,1.27126,3639.3,3639.0,0.24737]
[1736104620315,0.4965,3639.2,3639.0,0.24737]
[1736104620815,0.74387,3639.2,3638.9,2.21320629]
[1736104621118,0.74387,3639.2,3639.0,0.24738]
[1736104621305,0.74387,3639.2,3638.9,2.21320629]
[1736104621306,0.4965,3639.2,3638.9,2.21320629]
[1736104621503,0.74387,3639.2,3639.0,0.24738]
[1736104622314,0.4965,3639.2,3638.9,2.21320629]
[1736104622614,0.4965,3639.2,3639.0,0.24737]
[1736104622920,0.4965,3639.2,3639.0,0.24738]
[1736104623116,0.4965,3639.2,3638.9,2.21320629]
[1736104623317,0.4965,3639.2,3639.1,0.24737]
[1736104626817,4.30499021,3639.6,3639.0,5.42100629]
[1736104627110,4.30499021,3639.6,3639.5,0.24734]
[1736104627307,4.30499021,3639.6,3639.5,1.33334]
[1736104628619,6.40239828,3639.8,3639.5,1.33334]
[1736104628620,1.01,3639.8,3639.5,1.086]
[1736104628814,1.01,3639.8,3639.7,2.46053629]
[1736104629417,1.01,3639.8,3639.7,2.21320629]
[1736104629717,1.01,3639.8,3639.7,2.46053629]
[1736104634817,3.2078,3640.4,3639.8,0.24732]
[1736104635022,0.4759,3640.3,3640.1,0.2473]
[1736104635223,0.4759,3640.3,3640.2,1.3333]
[1736104635518,4.30499021,3640.5,3640.4,0.24728]
[1736104635726,4.30499021,3640.5,3640.4,2.46048629]
[1736104636618,4.30499021,3640.5,3640.2,1.086]
[1736104636619,0.24729,3640.3,3640.2,1.086]
[1736104636921,4.30499021,3640.5,3640.2,1.33329]
[1736104636922,0.24728,3640.5,3640.2,1.33329]
[1736104637227,1.73587,3640.6,3640.3,0.24729]
[1736104637524,1.73587,3640.6,3640.3,2.46049629]
[1736104637719,1.4886,3640.6,3640.3,2.46049629]
[1736104638026,1.73587,3640.6,3640.3,0.24729]
[1736104639822,0.24728,3640.5,3640.3,0.24729]
[1736104640229,1.4886,3640.6,3640.3,0.24729]
[1736104640525,1.73587,3640.6,3640.3,0.24729]
[1736104641127,1.73587,3640.6,3640.2,1.086]
[1736104641329,1.73587,3640.6,3640.4,0.24728]
[1736104641823,0.24728,3640.5,3640.3,0.24729]
[1736104643824,1.4886,3640.6,3640.2,1.086]
[1736104644023,1.73587,3640.6,3640.4,0.24728]
[1736104644632,0.24728,3640.4,3640.2,1.33329]
[1736104644824,0.24728,3640.5,3640.2,1.3333]
[1736104645023,0.24729,3640.3,3640.2,1.086]
[1736104646132,0.24729,3640.4,3640.2,1.33329]
[1736104646333,1.4886,3640.6,3640.2,1.33329]
[1736104646533,0.24729,3640.3,3640.2,1.33329]
[1736104647330,0.24729,3640.4,3640.2,1.33329]
[1736104647825,1.4886,3640.6,3640.2,1.086]
[1736104648037,3.2078,3640.5,3640.0,2.21320629]
[1736104648228,0.2473,3640.2,3640.1,1.086]
[1736104648932,0.2473,3640.2,3640.0,2.46051629]
[1736104649235,0.4672,3640.1,3640.0,2.46051629]
[1736104649430,0.4672,3640.1,3640.0,3.54651629]
[1736104651424,0.24729,3640.3,3640.1,0.2473]
[1736104651629,0.24729,3640.3,3640.2,1.086]
[1736104652130,0.4672,3640.4,3640.2,1.086]
[1736104652131,0.71449,3640.4,3640.2,1.086]
[1736104652635,0.24991305,3640.3,3640.2,1.086]
[1736104653138,0.00262305,3640.3,3640.2,1.086]
[1736104653334,0.00262305,3640.3,3640.2,1.3333]
[1736104657131,0.00262305,3640.3,3640.2,2.32984337]
[1736104658941,0.24991305,3640.3,3640.2,1.24384337]
[1736104659133,0.24991305,3640.3,3640.2,2.32184337]
[1736104659529,0.00262305,3640.3,3640.2,2.32184337]
[1736104661234,0.00262305,3640.3,3639.3,7.4412788]
[1736104661235,0.99916642,3640.3,3639.3,10.4218]
[1736104661439,0.24733,3639.7,3639.4,1.078]
[1736104661634,5.67114337,3639.6,3639.1,5.27782474]
[1736104661835,0.24736,3639.2,3639.1,4.28128137]
[1736104662437,3.45516,3639.2,3639.1,2.77208137]
[1736104663238,0.24741,3638.6,3638.4,1.078]
[1736104663440,0.24741,3638.6,3638.4,0.24742]
[1736104663742,0.2474,3638.7,3638.4,0.24742]
[1736104663942,0.24741,3638.6,3638.4,0.24742]
[1736104664144,3.2078,3638.8,3638.3,1.078]
[1736104664339,3.2078,3638.8,3637.9,7.213]
[1736104664340,2.21010646,3638.6,3637.9,7.213]
[1736104664539,3.2078,3638.4,3638.3,0.24743]
[1736104664739,2.15591424,3638.5,3638.3,2.21010646]
[1736104664940,2.15591424,3638.5,3638.4,0.24742]
[1736104665942,2.15591424,3638.6,3638.3,2.21010646]
[1736104666246,2.40332424,3638.6,3638.3,0.24742]
[1736104666447,0.483,3638.5,3638.2,0.4601]
[1736104666741,0.483,3638.5,3638.0,1.078]
[1736104666940,0.24744,3638.2,3638.0,1.078]
[1736104668547,2.21010646,3638.3,3637.6,1.078]
[1736104668843,0.24747,3637.7,3637.4,0.24748]
[1736104669149,0.4657,3637.6,3637.4,0.24748]
[1736104669341,0.4657,3637.6,3637.3,1.078]
[1736104669542,0.4657,3637.6,3637.4,0.24749]
[1736104670048,0.4657,3637.6,3637.4,0.24748]
[1736104671449,3.2078,3637.9,3637.7,0.24746]
[1736104671649,3.2078,3637.9,3637.8,0.24746]
[1736104672648,0.4949,3638.1,3638.0,0.24745]
[1736104672947,0.4949,3638.1,3638.0,1.32645]
[1736104673344,0.4949,3638.1,3638.0,1.079]
[1736104673552,0.4949,3638.1,3638.0,1.32645]
[1736104675643,3.2078,3638.4,3638.0,1.079]
[1736104675848,3.45522,3638.4,3638.1,0.24743]
[1736104677445,0.24742,3638.4,3638.1,0.24743]
[1736104678046,0.24743,3638.3,3638.1,0.24743]
[1736104678348,3.2078,3638.5,3638.0,1.32644]
[1736104678552,0.24743,3638.3,3638.0,1.32644]
[1736104680845,0.24743,3638.3,3638.1,0.24744]
[1736104681047,0.24743,3638.3,3638.0,1.32644]
[1736104681247,0.24743,3638.2,3638.0,1.32644]
[1736104681748,3.2078,3638.5,3638.0,1.079]
[1736104682943,0.24744,3638.2,3638.0,1.32645]
[1736104683345,3.2078,3638.5,3638.0,1.079]
[1736104683655,0.24744,3638.2,3638.0,1.079]
[1736104684149,0.24744,3638.1,3638.0,1.079]
[1736104684453,0.24745,3637.9,3637.8,1.079]
[1736104685251,0.24747,3637.7,3637.5,0.24748]
[1736104686850,1.021,3638.0,3637.6,0.24747]
[1736104687056,0.24746,3637.9,3637.7,0.24746]
[1736104687753,0.24747,3637.7,3637.6,1.077]
[1736104688347,0.24748,3637.5,3637.4,1.077]
[1736104688650,3.2078,3637.7,3637.1,1.077]
[1736104688651,0.2475,3637.2,3637.1,1.077]
[1736104689753,3.2078,3637.3,3636.3,3.2078]
[1736104689952,1.0067,3637.1,3636.3,3.2078]
[1736104690149,0.24754,3636.7,3636.5,0.24754]
[1736104690649,0.5293,3637.0,3636.4,1.077]
[1736104690851,0.77682,3637.0,3636.8,0.24753]
[1736104691050,0.77682,3637.0,3636.9,0.9927]
[1736104691251,3.2078,3637.3,3637.2,0.2475]
[1736104691456,3.45529,3637.3,3637.2,0.2475]
[1736104691652,3.45529,3637.3,3636.9,0.9927]
[1736104691857,0.2475,3637.2,3637.1,0.24751]
[1736104693659,3.2078,3637.3,3637.1,0.24751]
[1736104693856,3.4553,3637.3,3637.1,0.24751]
[1736104694053,3.4553,3637.3,3637.2,0.2475]
[1736104694054,3.2078,3637.3,3637.2,0.2475]
[1736104694852,0.4831,3637.5,3636.9,2.0697]
[1736104695051,0.73058,3637.5,3637.3,0.24749]
[1736104695256,0.4831,3637.5,3637.4,0.5105]
[1736104695460,0.4831,3637.5,3637.4,0.75799]
[1736104695760,0.73058,3637.5,3637.4,0.5105]
[1736104700464,0.4831,3637.5,3636.8,3.2078]
[1736104700659,0.24753,3636.7,3636.6,0.5186]
[1736104700965,0.24753,3636.7,3636.6,1.5956]
[1736104701458,0.24753,3636.7,3636.6,1.077]
[1736104702953,0.5046,3637.2,3636.2,0.4854]
[1736104702954,0.24755,3636.4,3636.2,0.4854]
[1736104703161,0.75286,3636.3,3636.2,0.4854]
[1736104703363,0.5053,3636.3,3636.1,1.32457]
[1736104703662,0.5053,3636.3,3635.9,3.6932]
[1736104703869,0.5053,3636.3,3635.9,1.5624]
[1736104704062,0.24758,3636.1,3635.9,1.80999]
[1736104704769,0.5053,3636.3,3635.9,1.80999]
[1736104705065,0.24758,3636.1,3635.9,1.80999]
[1736104706260,0.5053,3636.3,3635.9,1.5624]
[1736104706565,0.24758,3636.0,3635.9,1.5624]
[1736104708763,0.24758,3636.0,3635.9,1.077]
[1736104709663,3.2078,3636.1,3635.9,1.077]
[1736104709969,3.2078,3636.1,3636.0,0.24758]
[1736104713571,2.90704069,3636.3,3636.1,0.24757]
[1736104713771,2.90704069,3636.3,3635.9,1.077]
[1736104713772,2.65948069,3636.3,3635.9,1.077]
[1736104713971,2.65948069,3636.3,3635.5,3.2078]
[1736104713972,3.2078,3636.1,3635.5,3.2078]
[1736104714167,0.24762,3635.6,3635.4,1.077]
[1736104714468,3.2078,3635.7,3635.3,1.32462]
[1736104714469,0.75472,3635.5,3635.3,1.32462]
[1736104715070,0.5071,3635.5,3635.1,0.5337]
[1736104715372,0.24766,3634.8,3634.6,1.071]
[1736104715566,0.24766,3634.9,3634.6,1.071]
[1736104715768,0.24766,3634.8,3634.6,1.071]
[1736104715977,0.24766,3634.8,3634.5,0.24768]
[1736104716171,3.7292,3634.9,3634.4,1.071]
[1736104716369,3.7292,3634.9,3634.6,0.24767]
[1736104717066,3.7292,3634.9,3634.4,1.071]
[1736104717765,3.97686,3634.9,3634.6,0.24767]
[1736104717968,3.7292,3634.9,3634.6,0.24767]
[1736104718274,3.7292,3634.9,3634.7,0.24767]
[1736104718675,0.24766,3634.8,3634.5,0.24768]
[1736104718977,3.7292,3634.9,3634.6,0.24767]
[1736104719164,3.7292,3634.9,3634.5,0.24768]
[1736104719165,0.75807,3634.8,3634.5,0.24768]
[1736104719675,0.75807,3634.8,3634.4,1.071]
[1736104719875,0.75807,3634.8,3634.6,0.24767]
[1736104720571,0.75807,3634.8,3634.4,1.071]
[1736104720572,0.5104,3634.8,3634.4,1.071]
[1736104720770,0.5104,3634.8,3634.6,0.24767]
[1736104720771,0.75806,3634.8,3634.6,0.24767]
[1736104720972,0.24767,3634.7,3634.5,0.24768]
[1736104721171,1.28497,3634.8,3634.5,0.24768]
[1736104721577,1.28497,3634.8,3634.4,1.071]
[1736104721876,1.28497,3634.8,3634.6,0.24768]
[1736104722071,0.24768,3634.6,3634.4,0.24769]
[1736104722269,3.2078,3634.5,3633.5,7.22]
[1736104722475,3.2078,3634.5,3633.7,0.5169]
[1736104722476,2.21010646,3634.3,3633.7,0.5169]
[1736104722773,2.21010646,3634.3,3634.1,0.24771]
[1736104723079,0.5064,3634.2,3634.1,0.24771]
[1736104723587,3.2078,3634.5,3633.7,2.72700646]
[1736104723877,3.2078,3634.5,3634.4,0.24769]
[1736104724877,3.2078,3634.5,3634.3,1.072]
[1736104725078,3.2078,3634.5,3634.4,0.24769]
[1736104726277,3.2078,3634.5,3634.3,1.3197]
[1736104726682,0.2477,3634.3,3634.0,0.24771]
[1736104726875,0.2477,3634.3,3633.8,1.072]
[1736104726876,0.7688,3634.4,3633.9,0.24772]
[1736104727082,0.2477,3634.3,3633.8,1.072]
[1736104727576,0.2477,3634.3,3634.0,0.24771]
[1736104727774,0.2477,3634.3,3634.1,0.24771]
[1736104728377,0.76879,3634.4,3634.1,0.24771]
[1736104728673,2.21010646,3634.3,3633.8,1.072]
[1736104728874,3.2078,3634.1,3633.9,0.24772]
[1736104729672,0.24773,3633.8,3633.6,0.24774]
[1736104729875,2.72260646,3633.7,3633.5,0.24775]
[1736104730078,2.72260646,3633.7,3633.6,0.24775]
[1736104730377,2.72260646,3633.7,3633.2,3.2078]
[1736104730573,2.72260646,3633.7,3633.6,0.24775]
[1736104730776,2.97034646,3633.7,3633.2,3.2078]
[1736104730980,2.72260646,3633.7,3633.6,0.24775]
[1736104731582,3.28870646,3634.0,3633.2,3.2078]
[1736104731783,3.2078,3634.1,3633.9,0.24772]
[1736104732083,3.2078,3634.1,3634.0,0.24772]
[1736104733177,3.45551,3634.1,3633.9,0.24772]
[1736104733482,2.45782646,3634.0,3633.7,0.24773]
[1736104733676,0.24773,3633.9,3633.7,0.24773]
[1736104733875,0.77283,3633.9,3633.7,0.24773]
[1736104734477,0.5251,3633.9,3633.5,0.5362]
[1736104734681,0.5004,3633.8,3633.6,0.24774]
[1736104734879,0.5004,3633.8,3633.7,0.24774]
[1736104735079,0.5251,3633.9,3633.8,0.24773]
[1736104737275,0.5251,3633.9,3633.6,0.5256]
[1736104737276,3.2078,3634.1,3633.6,0.5256]
[1736104737583,3.2078,3634.1,3634.0,0.24772]
[1736104737783,2.15418069,3634.7,3634.1,0.61929]
[1736104737978,2.15418069,3634.7,3634.6,3.45548]
[1736104738388,2.15418069,3634.7,3634.6,0.24768]
[1736104738988,0.75024,3635.2,3634.9,0.24765]
[1736104739378,0.75024,3635.2,3634.5,1.072]
[1736104739681,0.5026,3635.2,3635.0,0.24765]
[1736104740182,0.5026,3635.2,3634.6,0.5063]
[1736104740384,2.21010646,3635.0,3634.6,0.5063]
[1736104740582,2.21010646,3635.0,3634.5,1.072]
[1736104740786,2.45775646,3635.0,3634.7,0.24767]
[1736104741283,0.24766,3634.9,3634.7,0.24767]
[1736104741685,2.45775646,3635.0,3634.7,0.24767]
[1736104742089,2.21010646,3635.0,3634.8,0.24766]
[1736104743283,3.2078,3635.1,3634.6,0.5045]
[1736104743485,3.2078,3635.1,3635.0,0.24765]
[1736104743789,3.2078,3635.1,3634.6,0.5045]
[1736104744092,0.24767,3634.7,3634.4,0.24769]
[1736104744289,0.24767,3634.7,3634.5,0.24768]
[1736104744582,0.4965,3634.6,3634.5,0.24768]
[1736104744782,0.4965,3634.6,3633.6,2.21010646]
[1736104744783,0.24771,3634.2,3633.9,0.24772]
[1736104744986,2.45782646,3634.0,3633.7,0.24774]
[1736104745286,0.4965,3633.9,3633.7,0.24774]
[1736104745590,0.74423,3633.9,3633.6,0.5292]
[1736104745990,0.74423,3633.9,3633.6,0.77694]
[1736104746490,0.24773,3633.8,3633.5,0.24775]
[1736104746985,4.48803,3633.9,3633.6,0.24774]
[1736104747385,0.24774,3633.7,3633.3,0.24776]
[1736104747984,0.24775,3633.6,3633.3,0.24776]
[1736104748388,2.45784646,3633.7,3633.4,0.24776]
[1736104749485,2.21010646,3633.7,3633.2,0.5279]
[1736104749689,2.21010646,3633.7,3633.5,0.24775]
[1736104749992,4.2403,3633.9,3633.2,0.5279]
[1736104750184,4.48803,3633.9,3633.6,0.24774]
[1736104750888,0.24773,3633.8,3633.6,0.24774]
[1736104751892,0.24773,3633.8,3633.5,0.24775]
[1736104752086,4.2403,3633.9,3633.4,0.24775]
[1736104752087,0.24774,3633.7,3633.4,0.24775]
[1736104752489,4.2403,3633.9,3633.2,0.5279]
[1736104752695,4.2403,3633.9,3633.3,0.24777]
[1736104752696,0.24775,3633.6,3633.3,0.24777]
[1736104753392,0.24774,3633.8,3633.5,0.24775]
[1736104753595,0.24774,3633.8,3633.6,0.24774]
[1736104753795,0.24774,3633.8,3633.5,0.24775]
[1736104754499,0.24775,3633.6,3633.4,0.24776]
[1736104754698,2.45784646,3633.7,3633.2,0.5279]
[1736104754889,2.45784646,3633.7,3633.5,0.24775]
[1736104756497,2.45784646,3633.7,3633.4,0.24776]
[1736104756692,0.24775,3633.6,3633.2,0.5279]
[1736104756894,0.24775,3633.6,3633.4,0.24776]
[1736104758804,2.21010646,3633.7,3633.5,0.24775]
[1736104758805,2.45784646,3633.7,3633.5,0.24775]
[1736104759697,2.45784646,3633.7,3633.2,0.5279]
[1736104759698,2.21010646,3633.7,3633.2,0.5279]
[1736104760097,0.24775,3633.6,3633.3,0.24776]
[1736104760287,0.24775,3633.5,3633.3,0.24776]
[1736104760791,0.24775,3633.6,3633.4,0.24776]
[1736104761600,4.36428715,3633.7,3633.2,0.5279]
[1736104761789,0.24775,3633.5,3633.3,0.24776]
[1736104762192,0.5189,3633.4,3633.3,0.24776]
[1736104762994,0.5189,3633.4,3633.2,0.5279]
[1736104763300,0.24777,3633.3,3633.1,0.24778]
[1736104765403,2.92084069,3633.4,3633.2,0.24777]
[1736104765806,4.88318715,3633.4,3633.0,3.2078]
[1736104766003,4.88318715,3633.4,3632.7,0.7722]
[1736104766004,0.24779,3633.0,3632.7,0.7722]
[1736104766194,2.21010646,3633.1,3632.7,0.5244]
[1736104766195,0.4999,3632.9,3632.7,0.5244]
[1736104766506,0.4999,3632.9,3632.7,0.7722]
[1736104766507,0.7477,3632.9,3632.7,0.7722]
[1736104766894,0.4999,3632.9,3632.7,0.7722]
[1736104767911,0.4999,3632.9,3632.7,0.5244]
[1736104768101,0.2478,3632.8,3632.7,0.5244]
[1736104768407,2.21010646,3632.8,3632.3,7.50122322]
[1736104768608,2.21010646,3632.8,3632.2,0.9973]
[1736104768805,2.21010646,3632.8,3632.3,0.24783]
[1736104769007,0.24782,3632.5,3632.3,0.24783]
[1736104769201,0.24782,3632.5,3632.2,0.9973]
[1736104769202,0.24782,3632.6,3632.4,0.24783]
[1736104769797,2.21010646,3632.5,3632.4,0.24783]
[1736104770111,2.45792646,3632.5,3632.4,0.24783]
[1736104770812,2.45792646,3632.5,3632.3,0.24783]
[1736104771106,0.4829,3632.4,3632.3,0.24783]
[1736104771306,2.15418069,3632.7,3632.1,3.2078]
[1736104771505,3.48126581,3632.8,3632.6,0.24781]
[1736104771699,5.44357227,3632.8,3632.7,0.24781]
[1736104772602,2.21010646,3632.8,3632.7,0.24781]
[1736104773705,4.36817349,3632.8,3632.7,0.24781]
[1736104776005,4.61597349,3632.8,3632.6,0.24781]
[1736104776208,0.24781,3632.7,3632.6,0.24781]
[1736104776397,4.61597349,3632.8,3632.7,0.24781]
[1736104777109,2.15806703,3632.8,3632.7,0.24781]
[1736104778113,2.15806703,3632.9,3632.5,4.2808]
[1736104778307,2.15806703,3632.9,3632.8,0.2478]
[1736104779207,0.4829,3633.1,3633.0,0.24779]
[1736104780110,2.15806703,3633.3,3632.6,1.58704]
[1736104780411,2.40583703,3633.3,3633.1,0.24777]
[1736104780813,2.40583703,3633.3,3632.6,1.58704]
[1736104781012,2.15806703,3633.3,3633.2,0.24777]
[1736104781205,2.40583703,3633.3,3633.2,0.24777]
[1736104781605,11.3035393,3633.4,3632.6,1.58704]
[1736104781810,0.24777,3633.3,3633.2,0.24777]
[1736104782313,0.24777,3633.3,3632.6,1.10474]
[1736104782509,0.24777,3633.3,3633.1,0.24778]
[1736104782908,2.40583703,3633.3,3633.1,0.24778]
[1736104783212,2.40583703,3633.3,3633.2,0.24777]
[1736104784006,2.15806703,3633.3,3633.2,0.24777]
[1736104786414,7.18312581,3633.4,3633.2,0.24777]
[1736104787118,7.18312581,3633.4,3633.3,0.4699]
[1736104788418,3.94966,3633.4,3633.3,0.4699]
[1736104788917,6.15976646,3633.4,3633.3,0.4699]
[1736104789719,9.55852675,3633.4,3633.2,0.24777]
[1736104789917,0.24777,3633.3,3633.2,0.24777]
[1736104791013,0.66082448,3633.3,3633.2,0.24777]
[1736104791809,0.41305448,3633.3,3633.2,0.24777]
[1736104793621,2.16135281,3633.3,3633.2,0.24777]
[1736104797219,2.16135281,3633.5,3633.4,0.24776]
[1736104798023,2.16135281,3633.5,3633.4,0.72786]
[1736104798321,2.16135281,3633.6,3633.4,0.4801]
[1736104798517,2.16135281,3633.6,3633.5,0.24775]
[1736104800220,2.40910281,3633.6,3633.5,1.073]
[1736104800419,0.24777,3633.3,3633.1,0.4731]
[1736104800619,0.24776,3633.4,3633.2,0.24777]
[1736104800820,1.23216,3633.5,3633.3,0.24776]
[1736104801019,0.9844,3633.5,3633.4,0.24776]
[1736104801319,2.16135281,3633.6,3633.5,0.24775]